bitfinex-derivatives/quotes_SOLF0:USTF0_20260208
["timestamp","ask_amount","ask_price","bid_price","bid_amount"]
[1770574022720,4.3669373,87.28,87.239,10.3244]
[1770574023724,4.3669373,87.28,87.243,10.324]
[1770574023920,4.3669373,87.28,87.243,14.10338395]
[1770574024819,8.4056081,87.27,87.233,10.3252]
[1770574025026,4.0386708,87.269,87.233,10.3252]
[1770574025919,10.63473994,87.293,87.193,11.51]
[1770574025920,4.0386708,87.292,87.24,3.77938395]
[1770574026124,4.0386708,87.299,87.241,3.77938395]
[1770574026425,9.12008113,87.298,87.241,3.77938395]
[1770574026621,9.12008113,87.297,87.241,3.77938395]
[1770574026924,9.11994112,87.296,87.251,0.5]
[1770574027117,9.11994112,87.295,87.251,0.5]
[1770574027316,4.0386708,87.299,87.251,0.5]
[1770574027616,9.11985238,87.298,87.251,0.5]
[1770574027818,9.11985238,87.297,87.251,0.5]
[1770574028019,9.11985238,87.296,87.251,0.5]
[1770574028222,9.11985238,87.295,87.251,0.5]
[1770574028420,4.0386708,87.299,87.251,0.5]
[1770574028626,9.11976832,87.298,87.251,0.5]
[1770574028926,9.11976832,87.297,87.251,0.5]
[1770574029122,9.11976832,87.296,87.253,3.77938395]
[1770574029327,4.0386708,87.299,87.253,3.77938395]
[1770574029919,4.0386708,87.299,87.261,10.3218]
[1770574030120,4.0386708,87.299,87.253,3.77938395]
[1770574030622,4.0386708,87.299,87.254,10.3226]
[1770574030920,4.0386708,87.299,87.254,14.10198395]
[1770574031124,4.0386708,87.299,87.255,3.77938395]
[1770574032925,4.3669373,87.33,87.271,3.77938395]
[1770574033125,4.3669373,87.33,87.281,3.77938395]
[1770574033627,4.0386708,87.334,87.283,3.77938395]
[1770574034125,4.0386708,87.329,87.283,3.77938395]
[1770574034719,4.0386708,87.329,87.289,10.3185]
[1770574035927,3.85273333,87.344,87.301,10.3171]
[1770574036327,4.3669373,87.36,87.306,3.94496518]
[1770574036526,9.09703314,87.359,87.306,3.94496518]
[1770574036733,4.3669373,87.36,87.306,3.94496518]
[1770574037731,4.3669373,87.36,87.315,10.3155]
[1770574037936,3.85273333,87.359,87.306,3.94496518]
[1770574038134,8.21967063,87.34,87.291,3.94496518]
[1770574038929,298.0,87.402,87.291,3.94496518]
[1770574038930,4.3669373,87.33,87.291,3.94496518]
[1770574039233,4.3669373,87.33,87.236,160.608]
[1770574039234,3.85273333,87.319,87.277,3.94496518]
[1770574039536,3.85273333,87.319,87.261,3.94496518]
[1770574040731,3.85273333,87.319,87.277,10.3199]
[1770574041431,11.69406845,87.34,87.24,240.71406845]
[1770574041432,3.85273333,87.339,87.281,3.94496518]
[1770574042028,3.85273333,87.339,87.294,3.94496518]
[1770574042239,3.85273333,87.353,87.294,3.94496518]
[1770574043136,3.85273333,87.353,87.304,10.3167]
[1770574043927,3.85273333,87.353,87.305,3.94496518]
[1770574050738,3.85273333,87.353,87.293,10.318]
[1770574050934,11.69406845,87.36,87.276,3.94496518]
[1770574050935,3.85273333,87.351,87.276,3.94496518]
[1770574051134,3.85273333,87.349,87.276,3.94496518]
[1770574051342,3.85273333,87.347,87.276,3.94496518]
[1770574051642,3.85273333,87.345,87.283,10.3192]
[1770574051941,3.85273333,87.343,87.283,10.3192]
[1770574052237,3.85273333,87.341,87.283,10.3192]
[1770574052440,3.85273333,87.339,87.283,10.3192]
[1770574053033,3.85273333,87.337,87.283,10.3192]
[1770574053229,3.85273333,87.335,87.283,10.3192]
[1770574053441,3.85273333,87.335,87.284,3.94496518]
[1770574054832,14.14611651,87.368,87.251,0.5]
[1770574054833,3.85273333,87.333,87.27,3.94496518]
[1770574055037,3.85273333,87.331,87.256,3.94496518]
[1770574055236,3.85273333,87.329,87.256,3.94496518]
[1770574055436,3.85273333,87.327,87.27,10.3208]
[1770574055638,3.85273333,87.325,87.27,10.3208]
[1770574055833,3.85273333,87.323,87.27,10.3208]
[1770574057142,3.85273333,87.319,87.251,0.5]
[1770574057545,3.85273333,87.319,87.252,3.94496518]
[1770574060949,4.36865274,87.29,87.252,3.94496518]
[1770574061144,3.85273333,87.298,87.256,3.94496518]
[1770574061945,4.36865274,87.33,87.271,3.94496518]
[1770574062343,4.36865274,87.32,87.271,3.94496518]
[1770574063748,3.85273333,87.329,87.27,4.36865274]
[1770574063938,3.85273333,87.319,87.267,3.94496518]
[1770574066243,3.85273333,87.319,87.271,4.01885688]
[1770574069052,4.36865274,87.29,87.253,4.01885688]
[1770574070551,4.36865274,87.29,87.251,0.5]
[1770574070739,3.68760643,87.29,87.251,0.5]
[1770574070943,4.36865274,87.28,87.251,0.5]
[1770574071345,4.36865274,87.27,87.251,0.5]
[1770574071650,8.05625917,87.28,87.251,0.5]
[1770574074149,3.68760643,87.28,87.251,0.5]
[1770574074644,4.36865274,87.29,87.251,0.5]
[1770574074955,4.36884168,87.29,87.251,0.5]
[1770574075255,3.68760643,87.294,87.251,0.5]
[1770574075755,3.68760643,87.294,87.251,4.51885688]
[1770574076946,4.36884168,87.3,87.255,4.01885688]
[1770574077354,8.05644811,87.3,87.255,4.01885688]
[1770574077559,4.36884168,87.29,87.255,4.01885688]
[1770574078761,4.36884168,87.29,87.258,10.3222]
[1770574079856,3.68760643,87.289,87.251,0.5]
[1770574080058,4.36884168,87.28,87.251,0.5]
[1770574080959,3.68760643,87.289,87.251,0.5]
[1770574084052,3.68760643,87.279,87.251,0.5]
[1770574085359,3.68760643,87.294,87.251,0.5]
[1770574085662,3.68760643,87.294,87.251,4.51885688]
[1770574088860,3.68760643,87.294,87.253,4.01885688]
[1770574089757,10.63473994,87.326,87.24,4.36884168]
[1770574089758,3.68760643,87.309,87.273,0.5]
[1770574089952,160.1868,87.467,87.273,4.51885688]
[1770574089953,8.05644811,87.32,87.273,4.51885688]
[1770574090155,9.09234619,87.319,87.273,4.51885688]
[1770574090356,4.36884168,87.32,87.273,4.51885688]
[1770574090552,4.36884168,87.33,87.273,4.51885688]
[1770574090861,4.36884168,87.32,87.273,4.51885688]
[1770574091065,4.36884168,87.32,87.275,4.01885688]
[1770574091366,3.68760643,87.329,87.275,4.01885688]
[1770574091565,9.09598526,87.328,87.275,4.01885688]
[1770574091766,9.09540473,87.327,87.275,4.01885688]
[1770574091962,3.68760643,87.329,87.275,4.01885688]
[1770574092163,12.78301116,87.328,87.275,4.01885688]
[1770574092364,9.09540473,87.327,87.275,4.01885688]
[1770574092564,3.68760643,87.328,87.275,4.01885688]
[1770574092765,3.68760643,87.328,87.282,4.01885688]
[1770574094166,4.36884168,87.32,87.282,4.01885688]
[1770574095166,4.01297091,87.319,87.273,0.5]
[1770574096568,4.01297091,87.319,87.273,4.3648017]
[1770574097361,4.01297091,87.309,87.255,10.3225]
[1770574097665,14.14611651,87.358,87.242,309.81763423]
[1770574097666,4.01297091,87.299,87.243,3.8648017]
[1770574098857,4.01297091,87.299,87.255,3.8648017]
[1770574100369,4.36884168,87.33,87.271,3.8648017]
[1770574100672,4.01297091,87.328,87.271,3.8648017]
[1770574100865,4.01297091,87.326,87.271,3.8648017]
[1770574101066,4.36884168,87.32,87.271,3.8648017]
[1770574101566,4.36884168,87.31,87.258,3.8648017]
[1770574101774,4.01297091,87.309,87.258,3.8648017]
[1770574102765,4.01297091,87.299,87.258,3.8648017]
[1770574104068,4.36884168,87.31,87.258,3.8648017]
[1770574104465,4.36884168,87.31,87.26,10.3219]
[1770574104672,4.36884168,87.33,87.271,3.8648017]
[1770574104875,4.01297091,87.328,87.271,3.8648017]
[1770574105077,4.36884168,87.32,87.271,3.8648017]
[1770574105469,4.01297091,87.328,87.279,10.3196]
[1770574105770,4.01297091,87.319,87.271,3.8648017]
[1770574105971,4.36884168,87.31,87.271,3.8648017]
[1770574106369,4.01297091,87.319,87.271,3.8648017]
[1770574107976,4.01297091,87.319,87.273,10.3204]
[1770574109778,4.01297091,87.319,87.274,3.8648017]
[1770574110576,4.01297091,87.319,87.275,10.3202]
[1770574113777,4.01297091,87.319,87.279,10.3197]
[1770574113984,4.01297091,87.329,87.28,3.8648017]
[1770574114179,4.01297091,87.327,87.28,3.8648017]
[1770574114379,4.01297091,87.325,87.28,3.8648017]
[1770574114580,4.01297091,87.323,87.28,3.8648017]
[1770574116188,9.09826498,87.322,87.28,3.8648017]
[1770574116380,9.09826498,87.321,87.28,3.8648017]
[1770574116580,9.09826498,87.32,87.28,3.8648017]
[1770574116789,9.09826498,87.319,87.28,3.8648017]
[1770574116990,9.09826498,87.318,87.28,3.8648017]
[1770574117184,4.01297091,87.323,87.28,3.8648017]
[1770574117487,9.09934346,87.322,87.28,3.8648017]
[1770574117681,9.09934346,87.321,87.28,3.8648017]
[1770574117882,13.46818514,87.32,87.28,3.8648017]
[1770574118077,9.09934346,87.319,87.28,3.8648017]
[1770574118290,9.09934346,87.318,87.28,3.8648017]
[1770574118486,4.36884168,87.32,87.28,3.8648017]
[1770574118487,9.10012366,87.317,87.28,3.8648017]
[1770574118686,4.36884168,87.32,87.28,3.8648017]
[1770574118888,9.10012366,87.319,87.28,3.8648017]
[1770574119092,9.10012366,87.318,87.28,3.8648017]
[1770574119391,9.10012366,87.317,87.28,3.8648017]
[1770574119689,4.01297091,87.323,87.28,3.8648017]
[1770574119886,9.10096194,87.322,87.28,3.8648017]
[1770574120091,9.10096194,87.321,87.28,3.8648017]
[1770574120291,9.10096194,87.32,87.28,3.8648017]
[1770574120588,9.10096194,87.319,87.283,10.3192]
[1770574120788,9.10096194,87.318,87.283,10.3192]
[1770574120992,4.01297091,87.323,87.283,14.1840017]
[1770574121189,9.10092016,87.322,87.283,14.1840017]
[1770574121389,9.10092016,87.321,87.283,14.1840017]
[1770574121584,9.10092016,87.32,87.283,14.1840017]
[1770574121789,9.10092016,87.319,87.283,14.1840017]
[1770574121989,9.10092016,87.318,87.283,14.1840017]
[1770574122184,4.01297091,87.323,87.283,14.1840017]
[1770574122392,9.10141861,87.322,87.283,14.1840017]
[1770574122582,9.10141861,87.321,87.283,14.1840017]
[1770574122786,9.10141861,87.32,87.283,14.1840017]
[1770574122994,9.10141861,87.319,87.283,14.1840017]
[1770574123196,4.01297091,87.323,87.283,14.1840017]
[1770574123197,9.10141861,87.318,87.283,14.1840017]
[1770574123386,4.01297091,87.323,87.283,14.1840017]
[1770574123588,9.10203488,87.322,87.283,14.1840017]
[1770574123895,9.10203488,87.321,87.283,14.1840017]
[1770574124083,9.10203488,87.32,87.283,14.1840017]
[1770574124283,9.10203488,87.319,87.283,14.1840017]
[1770574124489,4.01297091,87.323,87.283,14.1840017]
[1770574124695,9.10264061,87.322,87.283,14.1840017]
[1770574124890,9.10264061,87.321,87.283,14.1840017]
[1770574125096,4.01297091,87.323,87.283,14.1840017]
[1770574125290,9.10264061,87.322,87.283,14.1840017]
[1770574125491,9.10264061,87.321,87.283,14.1840017]
[1770574125792,4.01297091,87.323,87.283,14.1840017]
[1770574125994,9.10252521,87.322,87.285,10.319]
[1770574126294,9.10369295,87.321,87.285,10.319]
[1770574126490,4.36884168,87.31,87.273,10.3205]
[1770574126697,3.68085469,87.309,87.273,10.3205]
[1770574127188,3.68085469,87.309,87.276,10.32]
[1770574127493,3.68085469,87.319,87.276,10.32]
[1770574127690,9.10501101,87.318,87.276,14.29004783]
[1770574127892,9.10501101,87.317,87.276,14.29004783]
[1770574128093,3.68085469,87.319,87.276,14.29004783]
[1770574128295,9.10501101,87.318,87.276,14.29004783]
[1770574128489,9.10501101,87.317,87.276,14.29004783]
[1770574128695,3.68085469,87.319,87.277,3.97004783]
[1770574128898,9.10629435,87.318,87.279,3.97004783]
[1770574129196,3.68085469,87.319,87.279,3.97004783]
[1770574129395,8.04969637,87.33,87.279,3.97004783]
[1770574129593,3.68085469,87.328,87.279,3.97004783]
[1770574129794,3.68085469,87.326,87.28,14.28964783]
[1770574129991,4.36884168,87.32,87.28,14.28964783]
[1770574130187,9.10963803,87.319,87.28,14.28964783]
[1770574130495,9.10963803,87.318,87.282,10.3194]
[1770574130697,9.10963803,87.317,87.282,10.3194]
[1770574130892,9.10963803,87.316,87.282,10.3194]
[1770574131092,4.36884168,87.32,87.285,3.97004783]
[1770574131292,9.11500441,87.319,87.285,3.97004783]
[1770574131495,9.11500441,87.318,87.285,3.97004783]
[1770574131694,9.11500441,87.317,87.285,3.97004783]
[1770574131894,9.11500441,87.316,87.273,3.97004783]
[1770574132090,9.11500441,87.315,87.273,3.97004783]
[1770574132290,9.11500441,87.314,87.273,3.97004783]
[1770574132490,3.68085469,87.312,87.273,3.97004783]
[1770574132688,4.36884168,87.31,87.273,3.97004783]
[1770574132893,9.11500441,87.309,87.273,3.97004783]
[1770574133095,9.11500441,87.308,87.273,3.97004783]
[1770574133396,9.12610333,87.307,87.273,3.97004783]
[1770574133595,4.36884168,87.31,87.273,3.97004783]
[1770574133798,9.12639953,87.309,87.274,10.3203]
[1770574133995,9.12639953,87.308,87.274,10.3203]
[1770574134194,9.12639953,87.307,87.274,10.3203]
[1770574134398,9.12639953,87.306,87.274,14.29034783]
[1770574134593,3.68085469,87.312,87.274,14.29034783]
[1770574134897,9.12876359,87.311,87.274,14.29034783]
[1770574135099,3.68085469,87.312,87.274,14.29034783]
[1770574135294,9.12876359,87.311,87.274,14.29034783]
[1770574135500,9.12876359,87.31,87.274,14.29034783]
[1770574135700,9.12876359,87.309,87.274,14.29034783]
[1770574135999,9.12876359,87.308,87.274,14.29034783]
[1770574136199,3.68085469,87.312,87.274,14.29034783]
[1770574136401,9.12911256,87.311,87.274,14.29034783]
[1770574136596,9.12911256,87.31,87.274,14.29034783]
[1770574136791,9.12911256,87.309,87.274,14.29034783]
[1770574136994,9.12911256,87.308,87.274,14.29034783]
[1770574137190,3.68085469,87.312,87.274,14.29034783]
[1770574137400,9.12929126,87.311,87.274,14.29034783]
[1770574137597,9.12929126,87.31,87.274,14.29034783]
[1770574137797,3.68085469,87.308,87.26,4.36590761]
[1770574138002,4.36590761,87.3,87.265,10.3214]
[1770574138202,9.12935283,87.299,87.265,10.3214]
[1770574138404,9.30048948,87.298,87.265,10.3214]
[1770574138591,9.30048948,87.297,87.265,10.3214]
[1770574138792,9.30048948,87.296,87.265,10.3214]
[1770574138997,4.36590761,87.3,87.259,3.97004783]
[1770574138998,12.98134417,87.295,87.259,3.97004783]
[1770574139302,9.30048948,87.294,87.259,3.97004783]
[1770574139501,9.30048948,87.293,87.259,3.97004783]
[1770574139704,9.30048948,87.292,87.259,3.97004783]
[1770574139899,9.30048948,87.291,87.259,3.97004783]
[1770574140096,9.30048948,87.29,87.259,3.97004783]
[1770574140301,9.30048948,87.289,87.259,3.97004783]
[1770574140502,3.68085469,87.287,87.252,10.3229]
[1770574140707,4.36590761,87.27,87.245,302.43930949]
[1770574141003,9.30154632,87.269,87.245,302.43930949]
[1770574141204,9.30154632,87.268,87.245,302.43930949]
[1770574141406,4.36590761,87.27,87.245,302.43930949]
[1770574143506,3.68085469,87.279,87.245,302.43930949]
[1770574143707,12.9657627,87.278,87.245,302.43930949]
[1770574143909,3.68085469,87.276,87.245,302.43930949]
[1770574144110,4.36590761,87.27,87.245,302.43930949]
[1770574144298,3.68085469,87.274,87.245,302.43930949]
[1770574144501,9.28082484,87.273,87.245,302.43930949]
[1770574144802,9.28082484,87.272,87.245,302.43930949]
[1770574145007,9.28082425,87.271,87.245,302.43930949]
[1770574145210,9.28082425,87.27,87.245,302.43930949]
[1770574145409,4.36590761,87.27,87.245,302.43930949]
[1770574146108,4.36590761,87.26,87.23,10.3255]
[1770574147808,4.36590761,87.26,87.222,3.97004783]
[1770574148005,8.0467623,87.26,87.222,3.97004783]
[1770574148902,3.68085469,87.249,87.199,3.97004783]
[1770574149105,3.68085469,87.262,87.211,3.97004783]
[1770574149304,4.36590761,87.27,87.211,3.97004783]
[1770574149512,3.68085469,87.277,87.235,3.97004783]
[1770574152217,3.68085469,87.289,87.237,3.97004783]
[1770574152809,4.36590761,87.3,87.251,3.97004783]
[1770574153512,3.68085469,87.302,87.25,4.36590761]
[1770574153513,3.68085469,87.302,87.257,3.97004783]
[1770574154614,4.36590761,87.3,87.257,3.97004783]
[1770574154817,4.36590761,87.3,87.26,10.3219]
[1770574155118,4.36590761,87.3,87.26,14.19029408]
[1770574155510,3.92295816,87.315,87.271,3.86839408]
[1770574155716,3.92295816,87.328,87.271,3.86839408]
[1770574156108,3.92295816,87.326,87.271,3.86839408]
[1770574156310,13.17240569,87.325,87.271,3.86839408]
[1770574156506,9.24944753,87.324,87.271,3.86839408]
[1770574156716,9.24944753,87.323,87.28,10.3196]
[1770574156918,9.24944753,87.322,87.28,10.3196]
[1770574157111,9.24944753,87.321,87.28,10.3196]
[1770574157312,3.92295816,87.325,87.28,10.3196]
[1770574157511,3.92295816,87.319,87.271,3.86839408]
[1770574157720,3.92295816,87.317,87.271,3.86839408]
[1770574157920,3.92295816,87.315,87.271,3.86839408]
[1770574158114,13.258017,87.314,87.271,3.86839408]
[1770574158319,9.33505884,87.313,87.271,3.86839408]
[1770574158620,9.33505884,87.312,87.273,3.86839408]
[1770574158921,3.92295816,87.314,87.273,3.86839408]
[1770574159313,3.92295816,87.327,87.277,10.3199]
[1770574159518,3.92295816,87.327,87.218,45.83]
[1770574159519,9.33541389,87.326,87.281,3.86839408]
[1770574159819,3.92295816,87.339,87.281,3.86839408]
[1770574159820,9.33541389,87.325,87.281,3.86839408]
[1770574160019,3.92295816,87.339,87.281,3.86839408]
[1770574160320,3.92295816,87.337,87.281,3.86839408]
[1770574160519,3.92295816,87.335,87.281,3.86839408]
[1770574160710,13.25748972,87.334,87.283,3.86839408]
[1770574160915,9.33453156,87.333,87.283,3.86839408]
[1770574161116,9.33453156,87.332,87.283,3.86839408]
[1770574161316,9.33453156,87.331,87.283,3.86839408]
[1770574161517,9.33453156,87.33,87.283,3.86839408]
[1770574161824,3.92295816,87.328,87.282,10.3193]
[1770574162022,3.92295816,87.326,87.282,10.3193]
[1770574162219,3.92295816,87.319,87.271,3.86839408]
[1770574163513,3.92295816,87.319,87.274,3.86839408]
[1770574165422,3.92295816,87.319,87.281,3.86839408]
[1770574168523,3.92295816,87.339,87.281,3.86839408]
[1770574168725,4.36590761,87.34,87.281,3.86839408]
[1770574168924,4.36590761,87.31,87.251,3.86839408]
[1770574169517,4.36590761,87.32,87.281,3.86839408]
[1770574170827,14.14611651,87.366,87.245,305.13881737]
[1770574170828,4.36590761,87.34,87.283,3.86839408]
[1770574171028,3.92295816,87.339,87.283,3.86839408]
[1770574171232,3.92295816,87.337,87.283,3.86839408]
[1770574171418,4.36590761,87.33,87.283,3.86839408]
[1770574171830,4.36590761,87.33,87.293,10.3181]
[1770574173130,4.36590761,87.34,87.301,3.86839408]
[1770574174727,4.36590761,87.35,87.303,3.86839408]
[1770574175336,4.36590761,87.35,87.305,3.86839408]
[1770574176432,4.36590761,87.35,87.313,3.86839408]
[1770574176626,4.36590761,87.35,87.266,34.38]
[1770574176627,3.92295816,87.349,87.299,3.86839408]
[1770574176831,4.36590761,87.34,87.299,3.86839408]
[1770574177540,4.36590761,87.34,87.247,16.0]
[1770574177541,4.36590761,87.35,87.313,3.86839408]
[1770574181642,3.92295816,87.329,87.279,3.86839408]
[1770574182840,3.92295816,87.329,87.292,10.3182]
[1770574188146,4.36590761,87.32,87.279,10.3197]
[1770574188348,4.36590761,87.32,87.28,3.66897918]
[1770574191047,4.36590761,87.29,87.246,3.66897918]
[1770574191750,4.36590761,87.31,87.251,3.66897918]
[1770574191947,9.3226331,87.309,87.251,3.66897918]
[1770574192154,4.36590761,87.31,87.251,3.66897918]
[1770574192350,9.32605162,87.309,87.251,3.66897918]
[1770574192553,4.36590761,87.31,87.251,3.66897918]
[1770574192753,4.36590761,87.32,87.266,3.66897918]
[1770574193352,9.3298629,87.319,87.266,3.66897918]
[1770574193547,9.3298629,87.318,87.266,3.66897918]
[1770574193751,4.36590761,87.32,87.27,3.66897918]
[1770574194055,9.33060434,87.319,87.27,3.66897918]
[1770574194250,9.33060434,87.318,87.27,3.66897918]
[1770574194460,9.33060434,87.317,87.27,3.66897918]
[1770574194657,9.33060434,87.316,87.27,3.66897918]
[1770574194854,4.36590761,87.32,87.27,3.66897918]
[1770574195053,9.33731397,87.319,87.277,13.98897918]
[1770574195253,4.36590761,87.32,87.277,13.98897918]
[1770574195254,9.33731397,87.318,87.277,13.98897918]
[1770574195456,9.33731397,87.317,87.277,13.98897918]
[1770574195765,4.36590761,87.33,87.283,3.66897918]
[1770574195965,9.34055855,87.329,87.283,3.66897918]
[1770574196167,4.36590761,87.33,87.283,3.66897918]
[1770574196461,8.32642621,87.33,87.283,3.66897918]
[1770574196860,3.9605186,87.329,87.284,10.3192]
[1770574197762,3.9605186,87.329,87.284,13.98817918]
[1770574199666,13.31657233,87.328,87.284,13.98817918]
[1770574199863,3.9605186,87.328,87.284,13.98817918]
[1770574200461,9.35823808,87.327,87.284,13.98817918]
[1770574200662,3.9605186,87.328,87.284,13.98817918]
[1770574200862,9.35823808,87.327,87.284,13.98817918]
[1770574201167,3.9605186,87.319,87.284,10.3192]
[1770574201762,3.9605186,87.339,87.297,3.66897918]
[1770574201958,9.35806643,87.338,87.297,3.66897918]
[1770574202158,3.9605186,87.339,87.297,3.66897918]
[1770574202159,9.35806643,87.337,87.297,3.66897918]
[1770574202364,9.35806643,87.336,87.297,3.66897918]
[1770574202571,9.35806643,87.335,87.297,3.66897918]
[1770574202774,9.35806643,87.334,87.307,10.3164]
[1770574202962,3.9605186,87.339,87.307,10.3164]
[1770574203163,9.35766418,87.338,87.307,10.3164]
[1770574203362,9.35766418,87.337,87.307,10.3164]
[1770574203663,4.36516775,87.34,87.307,10.3164]
[1770574203867,4.36516775,87.35,87.312,3.66897918]
[1770574204070,9.35726439,87.349,87.312,3.66897918]
[1770574204365,9.35726439,87.349,87.257,34.38]
[1770574204366,3.9605186,87.364,87.324,3.66897918]
[1770574204571,4.36516775,87.35,87.31,3.66897918]
[1770574205165,4.36516775,87.34,87.294,3.66897918]
[1770574205363,3.9605186,87.329,87.294,3.66897918]
[1770574205566,4.36516775,87.32,87.281,3.66897918]
[1770574206365,8.32568635,87.32,87.281,3.66897918]
[1770574206869,8.32568635,87.32,87.283,10.3192]
[1770574209081,4.36516775,87.33,87.284,3.66897918]
[1770574210470,4.36516775,87.33,87.288,3.66897918]
[1770574210773,3.9605186,87.329,87.288,3.66897918]
[1770574210973,4.36516775,87.32,87.288,3.66897918]
[1770574211272,3.9605186,87.329,87.288,3.66897918]
[1770574211468,3.9605186,87.329,87.277,3.66897918]
[1770574211469,4.36516775,87.32,87.277,3.66897918]
[1770574211975,3.9605186,87.319,87.277,3.66897918]
[1770574212471,4.36516775,87.31,87.265,3.66897918]
[1770574212667,3.9605186,87.309,87.265,3.66897918]
[1770574213270,4.36516775,87.3,87.265,3.66897918]
[1770574214067,4.36516775,87.3,87.255,10.3226]
[1770574214275,3.9605186,87.299,87.255,10.3226]
[1770574214474,8.32568635,87.29,87.252,3.66897918]
[1770574214668,3.93286653,87.31,87.252,3.66897918]
[1770574214878,4.36516775,87.3,87.252,3.66897918]
[1770574215778,4.36516775,87.3,87.254,3.92502235]
[1770574216481,4.36516775,87.29,87.246,3.92502235]
[1770574216881,4.36516775,87.3,87.246,3.92502235]
[1770574217980,3.99275625,87.299,87.259,10.3221]
[1770574218181,4.36516775,87.29,87.246,3.92502235]
[1770574218786,3.99275625,87.289,87.246,14.24872235]
[1770574219089,9.26953152,87.288,87.221,3.92502235]
[1770574219288,4.36516775,87.29,87.221,3.92502235]
[1770574219487,9.26600057,87.289,87.231,3.92502235]
[1770574219789,9.26600057,87.288,87.231,3.92502235]
[1770574219984,3.99275625,87.289,87.231,3.92502235]
[1770574220182,3.99275625,87.288,87.231,3.92502235]
[1770574220782,3.99275625,87.288,87.233,3.92502235]
[1770574221389,4.36516775,87.28,87.233,3.92502235]
[1770574221588,3.99275625,87.288,87.233,3.92502235]
[1770574221786,3.99275625,87.288,87.239,3.92502235]
[1770574222788,3.99275625,87.288,87.243,3.92502235]
[1770574223589,3.99275625,87.299,87.25,4.36516775]
[1770574223791,3.99275625,87.299,87.251,3.92502235]
[1770574224087,3.99275625,87.299,87.252,3.92502235]
[1770574225691,3.99275625,87.299,87.256,3.92502235]
[1770574226384,3.99275625,87.315,87.261,3.92502235]
[1770574226589,3.99275625,87.313,87.261,3.92502235]
[1770574227788,3.99275625,87.313,87.267,10.3211]
[1770574228291,3.99275625,87.311,87.267,10.3211]
[1770574228490,8.357924,87.31,87.267,10.3211]
[1770574229687,4.36516775,87.31,87.267,10.3211]
[1770574229990,3.99275625,87.289,87.257,10.3223]
[1770574234294,3.99275625,87.289,87.249,3.92502235]
[1770574235694,3.99275625,87.289,87.25,10.3232]
[1770574238492,3.99275625,87.289,87.25,14.24822235]
[1770574238692,3.99275625,87.289,87.253,3.92502235]
[1770574240894,3.99275625,87.319,87.261,3.92502235]
[1770574241298,3.99275625,87.319,87.266,3.92502235]
[1770574241490,4.36516775,87.31,87.266,3.92502235]
[1770574243992,4.36516775,87.31,87.268,3.92502235]
[1770574245192,10.3126,87.34,87.257,10.3223]
[1770574245193,4.36516775,87.29,87.257,10.3223]
[1770574245387,8.33393317,87.29,87.257,10.3223]
[1770574245589,3.96876542,87.289,87.241,3.83651224]
[1770574245794,4.36516775,87.28,87.241,3.83651224]
[1770574246594,3.96876542,87.269,87.227,3.83651224]
[1770574246795,4.36516775,87.26,87.226,10.326]
[1770574247700,3.96876542,87.249,87.191,3.83651224]
[1770574248293,4.36516775,87.24,87.191,3.83651224]
[1770574248599,3.96876542,87.249,87.191,3.83651224]
[1770574249799,3.96876542,87.249,87.205,10.3284]
[1770574250300,3.96876542,87.239,87.191,3.83651224]
[1770574250800,3.96876542,87.239,87.139,160.788]
[1770574250801,3.96876542,87.255,87.201,3.83651224]
[1770574250988,3.96876542,87.268,87.211,3.83651224]
[1770574251193,9.26474242,87.267,87.221,3.83651224]
[1770574251396,10.68554948,87.286,87.208,3.83651224]
[1770574251397,8.33393317,87.25,87.208,3.83651224]
[1770574252298,8.33393317,87.25,87.19,4.36516775]
[1770574252299,3.96876542,87.249,87.195,3.83651224]
[1770574252493,4.36516775,87.24,87.195,3.83651224]
[1770574252893,8.33393317,87.24,87.195,3.83651224]
[1770574253202,3.96876542,87.24,87.195,3.83651224]
[1770574254805,8.33393317,87.24,87.195,3.83651224]
[1770574255298,3.96876542,87.24,87.195,3.83651224]
[1770574256302,3.96876542,87.253,87.202,3.83651224]
[1770574256504,14.23086585,87.294,87.144,301.81572268]
[1770574256505,3.96876542,87.266,87.211,3.83651224]
[1770574256701,3.96876542,87.264,87.22,4.36516775]
[1770574256895,3.96876542,87.264,87.22,8.20167999]
[1770574257700,3.96876542,87.264,87.222,10.3264]
[1770574259608,3.96876542,87.264,87.22,14.16321224]
[1770574260907,4.37054987,87.27,87.223,3.83651224]
[1770574261107,3.96876542,87.278,87.231,3.83651224]
[1770574261414,9.25454986,87.277,87.231,3.83651224]
[1770574261612,3.96876542,87.278,87.231,3.83651224]
[1770574264116,3.96876542,87.278,87.232,10.3253]
[1770574264316,3.96876542,87.278,87.232,14.16181224]
[1770574266024,3.96876542,87.278,87.234,14.16151224]
[1770574266224,9.25431031,87.277,87.234,14.16151224]
[1770574266416,3.96876542,87.278,87.235,3.83651224]
[1770574267122,3.96876542,87.292,87.25,3.83651224]
[1770574267422,3.96876542,87.29,87.249,10.3233]
[1770574267615,3.96876542,87.288,87.249,10.3233]
[1770574267816,9.25340934,87.287,87.249,10.3233]